[Event "Titled Tuesday Blitz September 21 2021"]
[White "Harikrishna, Pentala"]
[Black "Turzo, Attila"]
[WhiteFideId "5007003"]
[BlackFideId "704954"]
[WhiteElo "2614"]
[BlackElo "2487"]
[Result "1-0"]
[Round "04"]
[TimeControl "180+1"]
[Date "2021.09.21"]
[WhiteClock "0:00:44"]
[BlackClock "0:01:04"]

1. Nf3 {[%clk 0:02:11]}  d5 {[%clk 0:02:59]} 2. d4 {[%clk 0:02:11]}  Nf6 {[%clk 0:02:57]} 3. c4 {[%clk 0:02:12]}  c6 {[%clk 0:02:57]} 4. Nc3 {[%clk 0:02:12]}  e6 {[%clk 0:02:58]} 5. e3 {[%clk 0:02:12]}  Nbd7 {[%clk 0:02:57]} 6. Bd3 {[%clk 0:02:12]}  dxc4 {[%clk 0:02:57]} 7. Bxc4 {[%clk 0:02:13]}  b5 {[%clk 0:02:57]} 8. Bb3 {[%clk 0:02:14]}  Bd6 {[%clk 0:02:54]} 9. e4 {[%clk 0:02:12]}  e5 {[%clk 0:02:54]} 10. dxe5 {[%clk 0:02:12]}  Nxe5 {[%clk 0:02:54]} 11. Nxe5 {[%clk 0:02:13]}  Bxe5 {[%clk 0:02:54]} 12. Qxd8+ {[%clk 0:02:14]}  Kxd8 {[%clk 0:02:54]} 13. Bxf7 {[%clk 0:02:15]}  b4 {[%clk 0:02:53]} 14. Na4 {[%clk 0:02:05]}  Nxe4 {[%clk 0:02:42]} 15. O-O {[%clk 0:02:01]}  Bd4 {[%clk 0:02:19]} 16. Rd1 {[%clk 0:01:58]}  c5 {[%clk 0:02:10]} 17. Nxc5 {[%clk 0:01:49]}  Nxc5 {[%clk 0:02:09]} 18. Rxd4+ {[%clk 0:01:45]}  Ke7 {[%clk 0:02:10]} 19. Bd5 {[%clk 0:01:45]}  Bb7 {[%clk 0:01:59]} 20. Bg5+ {[%clk 0:01:44]}  Kf8 {[%clk 0:01:57]} 21. Rf4+ {[%clk 0:01:40]}  Ke8 {[%clk 0:01:55]} 22. Re1+ {[%clk 0:01:23]}  Kd7 {[%clk 0:01:55]} 23. Rf7+ {[%clk 0:01:20]}  Kd6 {[%clk 0:01:50]} 24. Bxb7 {[%clk 0:01:17]}  Nxb7 {[%clk 0:01:46]} 25. Rxb7 {[%clk 0:01:17]}  Rae8 {[%clk 0:01:47]} 26. Rxe8 {[%clk 0:01:09]}  Rxe8 {[%clk 0:01:46]} 27. Be3 {[%clk 0:01:06]}  a5 {[%clk 0:01:44]} 28. a3 {[%clk 0:01:00]}  bxa3 {[%clk 0:01:42]} 29. bxa3 {[%clk 0:01:00]}  g6 {[%clk 0:01:40]} 30. Ra7 {[%clk 0:00:58]}  Rc8 {[%clk 0:01:33]} 31. Rxa5 {[%clk 0:00:55]}  Ke6 {[%clk 0:01:33]} 32. h3 {[%clk 0:00:55]}  Rc2 {[%clk 0:01:32]} 33. g4 {[%clk 0:00:54]}  Ra2 {[%clk 0:01:30]} 34. Kg2 {[%clk 0:00:54]}  Kf6 {[%clk 0:01:28]} 35. Kg3 {[%clk 0:00:54]}  Ke6 {[%clk 0:01:28]} 36. h4 {[%clk 0:00:54]}  Kf6 {[%clk 0:01:27]} 37. h5 {[%clk 0:00:55]}  gxh5 {[%clk 0:01:27]} 38. gxh5 {[%clk 0:00:54]}  Rc2 {[%clk 0:01:19]} 39. Ra6+ {[%clk 0:00:53]}  Kf5 {[%clk 0:01:19]} 40. Ra7 {[%clk 0:00:52]}  Ra2 {[%clk 0:01:17]} 41. a4 {[%clk 0:00:52]}  Ra1 {[%clk 0:01:15]} 42. a5 {[%clk 0:00:52]}  Rg1+ {[%clk 0:01:13]} 43. Kf3 {[%clk 0:00:51]}  Rh1 {[%clk 0:01:12]} 44. Rxh7 {[%clk 0:00:48]}  Rh3+ {[%clk 0:01:11]} 45. Ke2 {[%clk 0:00:47]}  Rh1 {[%clk 0:01:11]} 46. a6 {[%clk 0:00:47]}  Ra1 {[%clk 0:01:10]} 47. a7 {[%clk 0:00:48]}  Ra2+ {[%clk 0:01:10]} 48. Kf3 {[%clk 0:00:48]}  Ra3 {[%clk 0:01:11]} 49. Rh8 {[%clk 0:00:48]}  Ra1 {[%clk 0:01:04]} 50. a8=Q {[%clk 0:00:44]} 1-0


[Site "https://www.chess.com"]

[Event "Titled Tuesday Blitz September 21 2021"]
[White "Harshavardhan G B"]
[Black "Goltsev, Dmitry"]
[WhiteFideId "25059009"]
[BlackFideId "24176710"]
[WhiteElo "1825"]
[BlackElo "2334"]
[Result "0-1"]
[Round "04"]
[TimeControl "180+1"]
[Date "2021.09.21"]
[WhiteClock "0:00:41"]
[BlackClock "0:01:22"]

1. d4 {[%clk 0:03:00]}  d5 {[%clk 0:02:55]} 2. c4 {[%clk 0:02:58]}  c6 {[%clk 0:02:55]} 3. Nf3 {[%clk 0:02:58]}  Nf6 {[%clk 0:02:54]} 4. Nc3 {[%clk 0:02:56]}  dxc4 {[%clk 0:02:54]} 5. a4 {[%clk 0:02:56]}  Bf5 {[%clk 0:02:46]} 6. Ne5 {[%clk 0:02:52]}  Na6 {[%clk 0:02:41]} 7. f3 {[%clk 0:02:46]}  Nd7 {[%clk 0:02:34]} 8. Nxc4 {[%clk 0:02:44]}  e5 {[%clk 0:02:30]} 9. e4 {[%clk 0:02:28]}  exd4 {[%clk 0:02:24]} 10. Qxd4 {[%clk 0:02:26]}  Nb4 {[%clk 0:02:22]} 11. Bd3 {[%clk 0:01:39]}  Be6 {[%clk 0:02:15]} 12. Nd6+ {[%clk 0:01:36]}  Bxd6 {[%clk 0:02:07]} 13. Qxd6 {[%clk 0:01:37]}  Nc5 {[%clk 0:02:03]} 14. Qxd8+ {[%clk 0:01:17]}  Rxd8 {[%clk 0:02:04]} 15. Bb1 {[%clk 0:01:11]}  Nb3 {[%clk 0:02:04]} 16. Ra3 {[%clk 0:01:06]}  Nxc1 {[%clk 0:02:03]} 17. O-O {[%clk 0:01:06]}  Nb3 {[%clk 0:02:00]} 18. a5 {[%clk 0:01:03]}  Nd2 {[%clk 0:01:58]} 19. Rc1 {[%clk 0:01:01]}  Nxb1 {[%clk 0:01:44]} 20. Nxb1 {[%clk 0:01:02]}  Rd3 {[%clk 0:01:41]} 21. Ra4 {[%clk 0:00:58]}  Rb3 {[%clk 0:01:35]} 22. f4 {[%clk 0:00:55]}  f6 {[%clk 0:01:30]} 23. f5 {[%clk 0:00:51]}  Bf7 {[%clk 0:01:30]} 24. Nd2 {[%clk 0:00:47]}  Rxb2 {[%clk 0:01:28]} 25. Nf3 {[%clk 0:00:47]}  O-O {[%clk 0:01:27]} 26. e5 {[%clk 0:00:47]}  fxe5 {[%clk 0:01:27]} 27. Nxe5 {[%clk 0:00:48]}  Re8 {[%clk 0:01:25]} 28. Nxf7 {[%clk 0:00:45]}  Kxf7 {[%clk 0:01:26]} 29. Rd1 {[%clk 0:00:45]}  Ree2 {[%clk 0:01:24]} 30. g4 {[%clk 0:00:44]}  Nd5 {[%clk 0:01:22]} 31. a6 {[%clk 0:00:42]}  b5 {[%clk 0:01:21]} 32. Ra3 {[%clk 0:00:40]}  Rg2+ {[%clk 0:01:21]} 33. Kh1 {[%clk 0:00:40]}  Rxh2+ {[%clk 0:01:21]} 34. Kg1 {[%clk 0:00:41]}  Rbg2+ {[%clk 0:01:21]} 35. Kf1 {[%clk 0:00:41]}  Nf4 {[%clk 0:01:22]} 0-1


[Site "https://www.chess.com"]

[Event "Titled Tuesday Blitz September 21 2021"]
[White "Jobava, Baadur"]
[Black "Volkov, Maksim"]
[WhiteFideId "13601520"]
[BlackFideId "54123070"]
[WhiteElo "2731"]
[BlackElo "2113"]
[Result "1-0"]
[Round "04"]
[TimeControl "180+1"]
[Date "2021.09.21"]
[WhiteClock "0:02:38"]
[BlackClock "0:01:54"]

1. b3 {[%clk 0:03:00]}  e5 {[%clk 0:02:56]} 2. Bb2 {[%clk 0:03:01]}  Nc6 {[%clk 0:02:55]} 3. Nf3 {[%clk 0:03:02]}  d6 {[%clk 0:02:54]} 4. d4 {[%clk 0:03:02]}  e4 {[%clk 0:02:52]} 5. d5 {[%clk 0:03:02]}  exf3 {[%clk 0:02:49]} 6. dxc6 {[%clk 0:03:02]}  bxc6 {[%clk 0:02:50]} 7. exf3 {[%clk 0:03:02]}  Nf6 {[%clk 0:02:49]} 8. Bd3 {[%clk 0:03:02]}  Be7 {[%clk 0:02:49]} 9. O-O {[%clk 0:03:03]}  O-O {[%clk 0:02:49]} 10. Re1 {[%clk 0:03:04]}  Be6 {[%clk 0:02:46]} 11. Nd2 {[%clk 0:03:04]}  Nd5 {[%clk 0:02:45]} 12. g3 {[%clk 0:02:59]}  Bf6 {[%clk 0:02:44]} 13. Bxf6 {[%clk 0:02:58]}  Qxf6 {[%clk 0:02:43]} 14. Ne4 {[%clk 0:02:58]}  Qh6 {[%clk 0:02:37]} 15. f4 {[%clk 0:02:57]}  Rfe8 {[%clk 0:02:36]} 16. Ng5 {[%clk 0:02:57]}  Nf6 {[%clk 0:02:21]} 17. Nxe6 {[%clk 0:02:56]}  fxe6 {[%clk 0:02:21]} 18. Qf3 {[%clk 0:02:56]}  Nd5 {[%clk 0:02:15]} 19. Re2 {[%clk 0:02:52]}  Qf6 {[%clk 0:02:13]} 20. Rae1 {[%clk 0:02:51]}  Re7 {[%clk 0:02:13]} 21. c4 {[%clk 0:02:48]}  Nb4 {[%clk 0:02:12]} 22. Bb1 {[%clk 0:02:48]}  d5 {[%clk 0:02:09]} 23. a3 {[%clk 0:02:47]}  Na6 {[%clk 0:02:09]} 24. cxd5 {[%clk 0:02:45]}  cxd5 {[%clk 0:01:55]} 25. Qd3 {[%clk 0:02:45]}  Nc5 {[%clk 0:01:55]} 26. Qxh7+ {[%clk 0:02:45]}  Kf7 {[%clk 0:01:56]} 27. b4 {[%clk 0:02:41]}  Na4 {[%clk 0:01:55]} 28. Qh5+ {[%clk 0:02:39]}  Kg8 {[%clk 0:01:54]} 29. Bg6 {[%clk 0:02:38]} 1-0


[Site "https://www.chess.com"]

[Event "Titled Tuesday Blitz September 21 2021"]
[White "Khusnutdinov, Rustam"]
[Black "Leitao, Rafael"]
[WhiteFideId "13701703"]
[BlackFideId "2101246"]
[WhiteElo "2924"]
[BlackElo "2731"]
[Result "1-0"]
[Round "04"]
[TimeControl "180+1"]
[Date "2021.09.21"]
[WhiteClock "0:00:45"]
[BlackClock "0:00:33"]

1. d4 {[%clk 0:03:00]}  Nf6 {[%clk 0:02:59]} 2. c4 {[%clk 0:03:01]}  e6 {[%clk 0:02:58]} 3. Nc3 {[%clk 0:03:00]}  Bb4 {[%clk 0:02:58]} 4. g3 {[%clk 0:03:00]}  c5 {[%clk 0:02:53]} 5. Nf3 {[%clk 0:03:00]}  b6 {[%clk 0:02:52]} 6. Bg2 {[%clk 0:02:55]}  Bb7 {[%clk 0:02:52]} 7. O-O {[%clk 0:02:54]}  cxd4 {[%clk 0:02:52]} 8. Qxd4 {[%clk 0:02:55]}  Nc6 {[%clk 0:02:52]} 9. Qf4 {[%clk 0:02:55]}  O-O {[%clk 0:02:47]} 10. Rd1 {[%clk 0:02:51]}  Bxc3 {[%clk 0:02:27]} 11. bxc3 {[%clk 0:02:52]}  Rc8 {[%clk 0:02:26]} 12. Ba3 {[%clk 0:02:03]}  Re8 {[%clk 0:02:23]} 13. Rd2 {[%clk 0:01:59]}  Na5 {[%clk 0:02:16]} 14. Ne5 {[%clk 0:01:58]}  Bxg2 {[%clk 0:02:15]} 15. Kxg2 {[%clk 0:01:59]}  d5 {[%clk 0:02:02]} 16. cxd5 {[%clk 0:01:54]}  exd5 {[%clk 0:02:02]} 17. Bb4 {[%clk 0:01:40]}  Qc7 {[%clk 0:01:56]} 18. Bxa5 {[%clk 0:01:12]}  bxa5 {[%clk 0:01:21]} 19. Nd3 {[%clk 0:01:03]}  Ne4 {[%clk 0:01:14]} 20. Rc2 {[%clk 0:00:58]}  d4 {[%clk 0:01:05]} 21. Qxc7 {[%clk 0:00:49]}  Rxc7 {[%clk 0:01:04]} 22. c4 {[%clk 0:00:50]}  f5 {[%clk 0:00:49]} 23. c5 {[%clk 0:00:47]}  Rec8 {[%clk 0:00:46]} 24. Rac1 {[%clk 0:00:47]}  Kf7 {[%clk 0:00:45]} 25. Rc4 {[%clk 0:00:46]}  Rd8 {[%clk 0:00:36]} 26. R1c2 {[%clk 0:00:46]}  Rd5 {[%clk 0:00:36]} 27. Ra4 {[%clk 0:00:45]}  Nxc5 {[%clk 0:00:33]} 28. Rxa5 {[%clk 0:00:45]} 1-0


[Site "https://www.chess.com"]

[Event "Titled Tuesday Blitz September 21 2021"]
[White "Kislov, Oleg"]
[Black "Savchenko, Boris"]
[WhiteFideId "13503774"]
[BlackFideId "4147332"]
[WhiteElo "2252"]
[BlackElo "2543"]
[Result "0-1"]
[Round "04"]
[TimeControl "180+1"]
[Date "2021.09.21"]
[WhiteClock "0:00:03"]
[BlackClock "0:00:08"]

1. e4 {[%clk 0:03:00]}  c5 {[%clk 0:02:59]} 2. Nf3 {[%clk 0:03:00]}  d6 {[%clk 0:03:00]} 3. c3 {[%clk 0:03:00]}  Nf6 {[%clk 0:02:59]} 4. Be2 {[%clk 0:02:59]}  g6 {[%clk 0:02:58]} 5. O-O {[%clk 0:02:59]}  Bg7 {[%clk 0:02:58]} 6. Bb5+ {[%clk 0:02:59]}  Nbd7 {[%clk 0:02:54]} 7. Re1 {[%clk 0:02:58]}  a6 {[%clk 0:02:54]} 8. Bf1 {[%clk 0:02:58]}  b5 {[%clk 0:02:51]} 9. d4 {[%clk 0:02:57]}  cxd4 {[%clk 0:02:45]} 10. cxd4 {[%clk 0:02:57]}  Nb6 {[%clk 0:02:43]} 11. b3 {[%clk 0:02:39]}  Bb7 {[%clk 0:02:37]} 12. Nbd2 {[%clk 0:02:36]}  O-O {[%clk 0:02:27]} 13. Bb2 {[%clk 0:02:30]}  b4 {[%clk 0:02:17]} 14. Bd3 {[%clk 0:02:21]}  Nfd7 {[%clk 0:02:12]} 15. Rc1 {[%clk 0:02:17]}  a5 {[%clk 0:02:10]} 16. h4 {[%clk 0:02:01]}  e6 {[%clk 0:02:08]} 17. h5 {[%clk 0:01:59]}  Bh6 {[%clk 0:02:03]} 18. Rc2 {[%clk 0:01:50]}  a4 {[%clk 0:01:50]} 19. hxg6 {[%clk 0:01:47]}  hxg6 {[%clk 0:01:50]} 20. Nc4 {[%clk 0:01:47]}  Nxc4 {[%clk 0:01:39]} 21. bxc4 {[%clk 0:01:40]}  Qa5 {[%clk 0:01:26]} 22. c5 {[%clk 0:01:30]}  dxc5 {[%clk 0:01:25]} 23. d5 {[%clk 0:01:31]}  exd5 {[%clk 0:01:22]} 24. exd5 {[%clk 0:01:30]}  Rae8 {[%clk 0:01:10]} 25. Rce2 {[%clk 0:01:06]}  Rxe2 {[%clk 0:01:00]} 26. Rxe2 {[%clk 0:01:03]}  a3 {[%clk 0:00:53]} 27. Ba1 {[%clk 0:01:01]}  Qb6 {[%clk 0:00:31]} 28. Bc4 {[%clk 0:00:58]}  Bg7 {[%clk 0:00:22]} 29. Bxg7 {[%clk 0:00:47]}  Kxg7 {[%clk 0:00:23]} 30. d6 {[%clk 0:00:37]}  Bxf3 {[%clk 0:00:22]} 31. gxf3 {[%clk 0:00:34]}  Nf6 {[%clk 0:00:22]} 32. Re7 {[%clk 0:00:32]}  Qd8 {[%clk 0:00:22]} 33. f4 {[%clk 0:00:22]}  Ng8 {[%clk 0:00:21]} 34. Qa1+ {[%clk 0:00:18]}  Kh7 {[%clk 0:00:21]} 35. Bxf7 {[%clk 0:00:08]}  Nxe7 {[%clk 0:00:20]} 36. Qf6 {[%clk 0:00:01]}  Qxd6 {[%clk 0:00:10]} 37. Qxd6 {[%clk 0:00:01]}  Rxf7 {[%clk 0:00:10]} 38. Qe6 {[%clk 0:00:01]}  Kg7 {[%clk 0:00:09]} 39. Qe5+ {[%clk 0:00:01]}  Kf8 {[%clk 0:00:09]} 40. Qxc5 {[%clk 0:00:02]}  Rxf4 {[%clk 0:00:09]} 41. Qe5 {[%clk 0:00:02]}  Rg4+ {[%clk 0:00:08]} 42. Kf1 {[%clk 0:00:02]}  Kf7 {[%clk 0:00:09]} 43. Qe3 {[%clk 0:00:02]}  Nf5 {[%clk 0:00:09]} 44. Qb3+ {[%clk 0:00:02]}  Kf6 {[%clk 0:00:09]} 45. Ke2 {[%clk 0:00:03]}  Nd4+ {[%clk 0:00:08]} 0-1


[Site "https://www.chess.com"]

[Event "Titled Tuesday Blitz September 21 2021"]
[White "Krivonosov, Oleg"]
[Black "Kollars, Dmitrij"]
[WhiteFideId "11600349"]
[BlackFideId "12909572"]
[WhiteElo "2729"]
[BlackElo "2894"]
[Result "1/2-1/2"]
[Round "04"]
[TimeControl "180+1"]
[Date "2021.09.21"]
[WhiteClock "0:00:17"]
[BlackClock "0:00:07"]

1. Nf3 {[%clk 0:03:00]}  d5 {[%clk 0:02:59]} 2. d4 {[%clk 0:03:00]}  Nf6 {[%clk 0:02:59]} 3. c4 {[%clk 0:02:59]}  e6 {[%clk 0:02:58]} 4. g3 {[%clk 0:02:59]}  dxc4 {[%clk 0:02:53]} 5. Qa4+ {[%clk 0:02:58]}  Nbd7 {[%clk 0:02:49]} 6. Bg2 {[%clk 0:02:57]}  a6 {[%clk 0:02:48]} 7. Nc3 {[%clk 0:02:56]}  Rb8 {[%clk 0:02:44]} 8. Qxc4 {[%clk 0:02:55]}  b5 {[%clk 0:02:44]} 9. Qd3 {[%clk 0:02:55]}  Bb7 {[%clk 0:02:44]} 10. O-O {[%clk 0:02:54]}  Be7 {[%clk 0:02:40]} 11. Bg5 {[%clk 0:02:49]}  c5 {[%clk 0:02:39]} 12. dxc5 {[%clk 0:02:47]}  Nxc5 {[%clk 0:02:39]} 13. Qxd8+ {[%clk 0:02:46]}  Rxd8 {[%clk 0:02:40]} 14. Rac1 {[%clk 0:02:43]}  O-O {[%clk 0:02:33]} 15. Ne5 {[%clk 0:02:42]}  Bxg2 {[%clk 0:02:32]} 16. Kxg2 {[%clk 0:02:43]}  Rc8 {[%clk 0:02:30]} 17. Rfd1 {[%clk 0:02:40]}  h6 {[%clk 0:02:29]} 18. Be3 {[%clk 0:02:38]}  b4 {[%clk 0:02:15]} 19. Nb1 {[%clk 0:02:35]}  Rfe8 {[%clk 0:01:59]} 20. Bxc5 {[%clk 0:02:12]}  Rxc5 {[%clk 0:01:49]} 21. Nd3 {[%clk 0:02:12]}  Ra5 {[%clk 0:01:46]} 22. Nd2 {[%clk 0:01:56]}  Rxa2 {[%clk 0:01:38]} 23. Ra1 {[%clk 0:01:54]}  Rxa1 {[%clk 0:01:34]} 24. Rxa1 {[%clk 0:01:55]}  Ra8 {[%clk 0:01:35]} 25. Ra4 {[%clk 0:01:54]}  Nd5 {[%clk 0:01:31]} 26. Nc4 {[%clk 0:01:48]}  Rc8 {[%clk 0:01:25]} 27. Nce5 {[%clk 0:01:44]}  f6 {[%clk 0:01:13]} 28. Ng6 {[%clk 0:01:42]}  Kf7 {[%clk 0:00:43]} 29. Nxe7 {[%clk 0:01:39]}  Kxe7 {[%clk 0:00:44]} 30. Rxa6 {[%clk 0:01:38]}  Rc2 {[%clk 0:00:44]} 31. Ra7+ {[%clk 0:01:34]}  Kf8 {[%clk 0:00:44]} 32. Kf1 {[%clk 0:01:28]}  h5 {[%clk 0:00:28]} 33. Rb7 {[%clk 0:01:19]}  g5 {[%clk 0:00:23]} 34. Nxb4 {[%clk 0:01:10]}  Rxb2 {[%clk 0:00:21]} 35. Rb8+ {[%clk 0:01:10]}  Kg7 {[%clk 0:00:21]} 36. Nc6 {[%clk 0:01:10]}  Rc2 {[%clk 0:00:21]} 37. Rb7+ {[%clk 0:01:08]}  Kf8 {[%clk 0:00:20]} 38. Nd4 {[%clk 0:01:07]}  Rc1+ {[%clk 0:00:20]} 39. Kg2 {[%clk 0:01:06]}  e5 {[%clk 0:00:20]} 40. Ne6+ {[%clk 0:01:04]}  Ke8 {[%clk 0:00:19]} 41. Ng7+ {[%clk 0:00:59]}  Kf8 {[%clk 0:00:19]} 42. Nxh5 {[%clk 0:00:58]}  Rc6 {[%clk 0:00:20]} 43. e4 {[%clk 0:00:49]}  Nc3 {[%clk 0:00:20]} 44. f3 {[%clk 0:00:49]}  Ne2 {[%clk 0:00:19]} 45. Kh3 {[%clk 0:00:45]}  Nd4 {[%clk 0:00:19]} 46. Kg4 {[%clk 0:00:42]}  Kg8 {[%clk 0:00:20]} 47. h4 {[%clk 0:00:40]}  gxh4 {[%clk 0:00:21]} 48. gxh4 {[%clk 0:00:39]}  Kf8 {[%clk 0:00:21]} 49. Ng3 {[%clk 0:00:38]}  Rc1 {[%clk 0:00:20]} 50. h5 {[%clk 0:00:35]}  Rg1 {[%clk 0:00:19]} 51. h6 {[%clk 0:00:29]}  Kg8 {[%clk 0:00:15]} 52. Kh3 {[%clk 0:00:23]}  Nxf3 {[%clk 0:00:15]} 53. Nh5 {[%clk 0:00:22]}  Ng5+ {[%clk 0:00:15]} 54. Kh2 {[%clk 0:00:23]}  Nf3+ {[%clk 0:00:16]} 55. Kh3 {[%clk 0:00:23]}  Rh1+ {[%clk 0:00:07]} 56. Kg4 {[%clk 0:00:20]}  Rh4+ {[%clk 0:00:08]} 57. Kxf3 {[%clk 0:00:20]}  Rxh5 {[%clk 0:00:09]} 58. Kg4 {[%clk 0:00:19]}  Rg5+ {[%clk 0:00:08]} 59. Kh4 {[%clk 0:00:19]}  Rg1 {[%clk 0:00:07]} 60. Kh5 {[%clk 0:00:17]}  Rg5+ {[%clk 0:00:06]} 61. Kh4 {[%clk 0:00:17]}  Rg1 {[%clk 0:00:07]} 62. Kh5 {[%clk 0:00:17]}  Rg5+ {[%clk 0:00:07]} 63. Kh4 {[%clk 0:00:17]} 1/2-1/2


[Site "https://www.chess.com"]

[Event "Titled Tuesday Blitz September 21 2021"]
[White "Krysa, Leandro"]
[Black "Pajeken, Jakob Leon"]
[WhiteFideId "116807"]
[BlackFideId "12942839"]
[WhiteElo "2490"]
[BlackElo "2351"]
[Result "1/2-1/2"]
[Round "04"]
[TimeControl "180+1"]
[Date "2021.09.21"]
[WhiteClock "0:00:04"]
[BlackClock "0:00:14"]

1. e4 {[%clk 0:03:00]}  e5 {[%clk 0:02:59]} 2. Nf3 {[%clk 0:03:00]}  Nc6 {[%clk 0:03:00]} 3. Bb5 {[%clk 0:03:00]}  a6 {[%clk 0:02:59]} 4. Ba4 {[%clk 0:03:00]}  Nf6 {[%clk 0:02:59]} 5. d3 {[%clk 0:03:00]}  d6 {[%clk 0:02:57]} 6. c3 {[%clk 0:03:00]}  g6 {[%clk 0:02:58]} 7. O-O {[%clk 0:02:58]}  Bg7 {[%clk 0:02:58]} 8. h3 {[%clk 0:02:58]}  O-O {[%clk 0:02:58]} 9. Be3 {[%clk 0:02:58]}  Bd7 {[%clk 0:02:58]} 10. Bc2 {[%clk 0:02:53]}  h6 {[%clk 0:02:48]} 11. Nbd2 {[%clk 0:02:51]}  Kh7 {[%clk 0:02:49]} 12. d4 {[%clk 0:02:48]}  Nh5 {[%clk 0:02:45]} 13. Re1 {[%clk 0:02:36]}  Qf6 {[%clk 0:02:42]} 14. dxe5 {[%clk 0:02:24]}  dxe5 {[%clk 0:02:40]} 15. Nh2 {[%clk 0:02:19]}  Nf4 {[%clk 0:02:36]} 16. Ng4 {[%clk 0:02:17]}  Bxg4 {[%clk 0:02:32]} 17. Qxg4 {[%clk 0:02:12]}  Rad8 {[%clk 0:02:30]} 18. Rad1 {[%clk 0:02:08]}  h5 {[%clk 0:02:20]} 19. Qf3 {[%clk 0:02:05]}  Nd3 {[%clk 0:02:16]} 20. Qxf6 {[%clk 0:02:00]}  Bxf6 {[%clk 0:02:15]} 21. Bxd3 {[%clk 0:02:00]}  Rxd3 {[%clk 0:02:16]} 22. Nc4 {[%clk 0:01:53]}  Rfd8 {[%clk 0:02:14]} 23. Rxd3 {[%clk 0:01:52]}  Rxd3 {[%clk 0:02:14]} 24. Kf1 {[%clk 0:01:53]}  b5 {[%clk 0:02:02]} 25. Nd2 {[%clk 0:01:49]}  Be7 {[%clk 0:02:01]} 26. Ke2 {[%clk 0:01:47]}  Rd7 {[%clk 0:02:01]} 27. Nb3 {[%clk 0:01:41]}  f5 {[%clk 0:01:49]} 28. f3 {[%clk 0:01:36]}  Kg7 {[%clk 0:01:35]} 29. Nc5 {[%clk 0:01:32]}  Bxc5 {[%clk 0:01:35]} 30. Bxc5 {[%clk 0:01:33]}  Kf6 {[%clk 0:01:36]} 31. a4 {[%clk 0:01:33]}  Nd8 {[%clk 0:01:32]} 32. axb5 {[%clk 0:01:30]}  axb5 {[%clk 0:01:32]} 33. Ra1 {[%clk 0:01:30]}  Ne6 {[%clk 0:01:30]} 34. Ra6 {[%clk 0:01:28]}  fxe4 {[%clk 0:01:29]} 35. fxe4 {[%clk 0:01:28]}  Kf7 {[%clk 0:01:29]} 36. Be3 {[%clk 0:01:26]}  g5 {[%clk 0:01:13]} 37. g3 {[%clk 0:01:24]}  h4 {[%clk 0:00:51]} 38. gxh4 {[%clk 0:01:20]}  gxh4 {[%clk 0:00:50]} 39. Ra8 {[%clk 0:01:16]}  Kf6 {[%clk 0:00:49]} 40. Rh8 {[%clk 0:01:07]}  Nf4+ {[%clk 0:00:47]} 41. Bxf4 {[%clk 0:00:34]}  exf4 {[%clk 0:00:48]} 42. Rh5 {[%clk 0:00:31]}  Rg7 {[%clk 0:00:44]} 43. Kf3 {[%clk 0:00:28]}  Rg3+ {[%clk 0:00:43]} 44. Kxf4 {[%clk 0:00:28]}  Rxh3 {[%clk 0:00:44]} 45. Rxb5 {[%clk 0:00:28]}  Rh1 {[%clk 0:00:43]} 46. Rh5 {[%clk 0:00:22]}  h3 {[%clk 0:00:38]} 47. Kg3 {[%clk 0:00:17]}  Rb1 {[%clk 0:00:35]} 48. Rxh3 {[%clk 0:00:16]}  Rxb2 {[%clk 0:00:35]} 49. Kf4 {[%clk 0:00:13]}  Rf2+ {[%clk 0:00:35]} 50. Ke3 {[%clk 0:00:13]}  Ra2 {[%clk 0:00:28]} 51. Kd4 {[%clk 0:00:13]}  Ra4+ {[%clk 0:00:25]} 52. c4 {[%clk 0:00:12]}  Ke6 {[%clk 0:00:25]} 53. Rh6+ {[%clk 0:00:12]}  Kd7 {[%clk 0:00:25]} 54. Kd5 {[%clk 0:00:12]}  Ra5+ {[%clk 0:00:25]} 55. c5 {[%clk 0:00:12]}  c6+ {[%clk 0:00:25]} 56. Kd4 {[%clk 0:00:12]}  Ra4+ {[%clk 0:00:25]} 57. Ke5 {[%clk 0:00:11]}  Rc4 {[%clk 0:00:25]} 58. Rh7+ {[%clk 0:00:11]}  Kc8 {[%clk 0:00:24]} 59. Kd6 {[%clk 0:00:02]}  Rxe4 {[%clk 0:00:23]} 60. Kxc6 {[%clk 0:00:01]}  Re6+ {[%clk 0:00:23]} 61. Kb5 {[%clk 0:00:02]}  Rg6 {[%clk 0:00:22]} 62. Rf7 {[%clk 0:00:02]}  Rh6 {[%clk 0:00:22]} 63. Re7 {[%clk 0:00:02]}  Rg6 {[%clk 0:00:22]} 64. Re1 {[%clk 0:00:03]}  Rh6 {[%clk 0:00:21]} 65. Ra1 {[%clk 0:00:04]}  Rg6 {[%clk 0:00:21]} 66. Ra3 {[%clk 0:00:05]}  Rh6 {[%clk 0:00:21]} 67. Rd3 {[%clk 0:00:05]}  Rg6 {[%clk 0:00:21]} 68. Re3 {[%clk 0:00:06]}  Rh6 {[%clk 0:00:21]} 69. Kc4 {[%clk 0:00:06]}  Rg6 {[%clk 0:00:22]} 70. Kd5 {[%clk 0:00:06]}  Rh6 {[%clk 0:00:22]} 71. Re5 {[%clk 0:00:07]}  Rg6 {[%clk 0:00:23]} 72. Re4 {[%clk 0:00:07]}  Rh6 {[%clk 0:00:23]} 73. Ke5 {[%clk 0:00:06]}  Rg6 {[%clk 0:00:23]} 74. Kd4 {[%clk 0:00:06]}  Rh6 {[%clk 0:00:23]} 75. Re5 {[%clk 0:00:07]}  Rg6 {[%clk 0:00:24]} 76. Kc4 {[%clk 0:00:08]}  Rh6 {[%clk 0:00:24]} 77. Kb5 {[%clk 0:00:08]}  Rg6 {[%clk 0:00:24]} 78. Rd5 {[%clk 0:00:09]}  Rh6 {[%clk 0:00:24]} 79. Rd4 {[%clk 0:00:10]}  Rg6 {[%clk 0:00:25]} 80. Ka5 {[%clk 0:00:10]}  Kc7 {[%clk 0:00:25]} 81. Kb5 {[%clk 0:00:07]}  Rh6 {[%clk 0:00:25]} 82. Ra4 {[%clk 0:00:07]}  Rg6 {[%clk 0:00:25]} 83. Ra7+ {[%clk 0:00:07]}  Kc8 {[%clk 0:00:26]} 84. Re7 {[%clk 0:00:07]}  Rh6 {[%clk 0:00:26]} 85. Re4 {[%clk 0:00:07]}  Rg6 {[%clk 0:00:26]} 86. Ra4 {[%clk 0:00:08]}  Rh6 {[%clk 0:00:24]} 87. Rb4 {[%clk 0:00:08]}  Rg6 {[%clk 0:00:24]} 88. Ka5 {[%clk 0:00:08]}  Rh6 {[%clk 0:00:24]} 89. Rb6 {[%clk 0:00:08]}  Rh1 {[%clk 0:00:19]} 90. Kb5 {[%clk 0:00:08]}  Rb1+ {[%clk 0:00:15]} 91. Kc6 {[%clk 0:00:08]}  Rh1 {[%clk 0:00:14]} 92. Kb5 {[%clk 0:00:03]}  Rb1+ {[%clk 0:00:14]} 93. Ka6 {[%clk 0:00:04]}  Ra1+ {[%clk 0:00:14]} 94. Kb5 {[%clk 0:00:04]}  Rb1+ {[%clk 0:00:14]} 1/2-1/2


[Site "https://www.chess.com"]